[Event "FIDE World Cup O10-A 2024"]
[Site "Batumi"]
[Date "2024.06.28"]
[Round "6.1"]
[White "Bolashakov, Nurali"]
[Black "Chakrabarty, Reyaansh"]
[Result "1-0"]
[ECO "B11"]
[WhiteElo "1843"]
[BlackElo "2185"]
[Annotator "RC"]
[PlyCount "83"]
[EventDate "2024.06.23"]
[EventType "swiss"]
[EventCountry "GEO"]
[SourceTitle "playchess.com"]
[Source "ChessBase"]
[SourceQuality "1"]
[TimeControl "5400+30"]

1. e4 {[%emt 0:00:20]} c6 {[%emt 0:00:02]} 2. Nc3 {[%emt 0:00:12]} d5 {[%emt 0:00:02]} 3. Nf3 {[%emt 0:00:22]} dxe4 {[%emt 0:00:02]} 4. Nxe4 {[%emt 0:00:15]} Nf6 {[%emt 0:00:03]} 5. Qe2 {[%emt 0:00:41]} Nxe4 {[%emt 0:00:03]} 6. Qxe4 {[%emt 0:00:10]} Nd7 {[%emt 0:00:01]} 7. Bc4 {[%emt 0:00:16]} Nf6 {[%emt 0:00:01]} 8. Ne5 {[%emt 0:00:15]} e6 {[%emt 0:00:02]} 9. Qe2 {[%emt 0:00:17]} b5 {[%emt 0:00:02]} 10. Bb3 {[%emt 0:00:18]} Qc7 {[%emt 0:00:01]} 11. O-O {[%emt 0:01:09]} Bd6 {[%emt 0:06:35]} 12. d4 {[%emt 0:02:03]} O-O {[%emt 0:00:48]} 13. c3 {[%emt 0:04:08]} c5 {[%emt 1:29:18]} 14. Bf4 {[%emt 1:27:04]} c4 {[%emt 0:00:00]} 15. Bc2 {[%emt 0:00:00]} Nd5 {[%emt 0:00:00]} 16. Bg3 {[%emt 0:00:00]} Bb7 {[%emt 0:01:30]} 17. Rae1 {[%emt 0:01:30]} h6 {[%emt 0:00:30]} 18. Bb1 {[%emt 0:00:30]} Rae8 {[%emt 0:00:30]} 19. Qh5 {[%emt 0:00:30]} Qe7 {[%emt 0:00:30]} 20. Qh3 {[%emt 0:00:30]} Bxe5 {[%emt 0:00:00]} 21. Rxe5 {[%emt 0:00:30]} f5 {[%emt 0:00:00]} 22. Rfe1 {[%emt 0:00:00]} Qf6 {[%emt 0:00:00]} 23. Bxf5 {[%emt 0:00:00]} Qxf5 {[%emt 0:00:00]} 24. Qxf5 {[%emt 0:00:00]} exf5 {[%emt 0:00:00]} 25. Rxe8 {[%emt 0:00:00]} f4 {[%emt 0:00:00]} 26. Rxf8+ {[%emt 0:00:00]} Kxf8 {[%emt 0:00:00]} 27. Bh4 {[%emt 0:00:00]} g5 {[%emt 0:00:00]} 28. Bxg5 {[%emt 0:00:00]} hxg5 {[%emt 0:00:00]} 29. Re5 {[%emt 0:00:00]} a5 {[%emt 0:00:00]} 30. a3 {[%emt 0:00:00]} g4 {[%emt 0:00:00]} 31. Rf5+ {[%emt 0:00:00]} Ke7 {[%emt 0:00:00]} 32. Rg5 {[%emt 0:00:00]} Kf6 {[%emt 0:00:00]} 33. Rxg4 {[%emt 0:00:00]} f3 {[%emt 0:00:00]} 34. g3 {[%emt 0:06:30]} b4 {[%emt 0:00:00]} 35. axb4 {[%emt 0:00:00]} axb4 {[%emt 0:00:00]} 36. cxb4 {[%emt 0:00:00]} Nxb4 {[%emt 0:08:30]} 37. h4 {[%emt 0:00:00]} Bd5 {[%emt 0:00:00]} 38. h5 {[%emt 0:00:00]} Be6 {[%emt 0:00:00]} 39. Rg6+ {[%emt 0:00:00]} Kf7 {[%emt 0:00:00]} 40. Rg5 {[%emt 0:00:00]} Kf6 {[%emt 0:00:00]} 41. h6 {[%emt 0:03:30]} Bf5 {[%emt 0:01:13]} 42. Rxf5+ {[%emt 0:00:00]} 1-0

[Event "FIDE World Cup O10-A 2024"]
[Site "Batumi"]
[Date "2024.06.28"]
[Round "6.2"]
[White "Safin Safarullakhan"]
[Black "Vyom Malhotra"]
[Result "0-1"]
[ECO "A96"]
[WhiteElo "1879"]
[BlackElo "1803"]
[Annotator "NA"]
[PlyCount "260"]
[EventDate "2024.06.23"]
[EventType "swiss"]
[EventCountry "GEO"]
[SourceTitle "playchess.com"]
[Source "ChessBase"]
[SourceQuality "1"]
[TimeControl "5400+30"]

1. Nf3 {[%emt 0:00:21]} f5 {[%emt 0:01:15]} 2. g3 {[%emt 0:00:35]} Nf6 {[%emt 0:00:10]} 3. Bg2 {[%emt 0:00:09]} d6 {[%emt 0:00:37]} 4. d4 {[%emt 0:00:37]} e6 {[%emt 0:00:10]} 5. O-O {[%emt 0:00:26]} Be7 {[%emt 0:00:09]} 6. c4 {[%emt 0:00:39]} O-O {[%emt 0:00:21]} 7. Nc3 {[%emt 0:00:38]} Ne4 {[%emt 0:02:40]} 8. Qc2 {[%emt 0:01:17]} Nxc3 {[%emt 0:00:35]} 9. bxc3 {[%emt 0:00:33]} Nc6 {[%emt 0:01:10]} 10. d5 {[%emt 0:03:15]} Na5 {[%emt 0:01:55]} 11. dxe6 {[%emt 0:06:49]} Bxe6 {[%emt 0:01:47]} 12. Nd4 {[%emt 0:01:03]} Bxc4 {[%emt 0:05:16]} 13. Nxf5 {[%emt 0:00:38]} Bf6 {[%emt 0:03:14]} 14. Bf4 {[%emt 0:06:35]} Qe8 {[%emt 0:02:38]} 15. Rfe1 {[%emt 0:03:15]} Be5 {[%emt 0:00:47]} 16. Bxe5 {[%emt 0:03:10]} Qxe5 {[%emt 0:00:58]} 17. e4 {[%emt 0:00:43]} Rae8 {[%emt 0:04:27]} 18. Ne3 {[%emt 0:03:36]} Qc5 {[%emt 0:04:01]} 19. Nxc4 {[%emt 0:05:24]} Nxc4 {[%emt 0:00:39]} 20. Rf1 {[%emt 0:04:43]} Kh8 {[%emt 0:02:25]} 21. Kh1 {[%emt 0:03:35]} Re6 {[%emt 0:04:39]} 22. Rad1 {[%emt 0:08:08]} Ne5 {[%emt 0:02:04]} 23. Rd4 {[%emt 0:05:41]} Rh6 $11 {[%emt 0:05:30]} 24. h3 {[%emt 0:06:15]} Nf3 {[%emt 0:03:09]} 25. Rd3 {[%emt 0:04:23]} Qh5 {[%emt 0:02:50]} 26. Rxf3 {[%emt 0:08:16]} Rxf3 {[%emt 0:00:23]} 27. Qa4 {[%emt 0:00:52]} Rf8 {[%emt 0:02:46]} 28. Qxa7 {[%emt 0:02:49]} Qb5 {[%emt 0:00:08]} 29. f4 {[%emt 0:01:27]} Qd3 {[%emt 0:04:35]} 30. Kh2 {[%emt 0:01:08]} Rg6 {[%emt 0:03:03]} 31. Rf3 {[%emt 0:02:18]} Qb1 {[%emt 0:01:51]} 32. e5 {[%emt 0:01:59]} h5 {[%emt 0:01:25]} 33. Re3 {[%emt 0:02:52]} Re6 {[%emt 0:04:47]} 34. exd6 {[%emt 0:01:45]} Rxe3 {[%emt 0:02:04]} 35. Qxe3 {[%emt 0:00:03]} cxd6 {[%emt 0:00:25]} 36. Qe7 {[%emt 0:00:49]} Qf5 {[%emt 0:01:47]} 37. h4 {[%emt 0:01:55]} Qf6 {[%emt 0:07:29]} 38. Qxb7 {[%emt 0:00:43]} Re8 {[%emt 0:00:08]} 39. a4 {[%emt 0:02:16]} Qg6 {[%emt 0:02:29]} 40. Qb6 {[%emt 0:04:02]} Re2 {[%emt 0:02:57]} 41. Qd4 {[%emt 0:01:20]} Qe6 {[%emt 0:01:26]} 42. c4 {[%emt 0:00:39]} Qg4 {[%emt 0:01:09]} 43. Qd3 {[%emt 0:03:40]} Ra2 {[%emt 0:00:44]} 44. a5 {[%emt 0:00:31]} Qe6 {[%emt 0:03:30]} 45. f5 {[%emt 0:00:29]} Qh6 {[%emt 0:01:43]} 46. Qe4 {[%emt 0:00:34]} Kh7 {[%emt 0:10:45]} 47. f6+ {[%emt 0:00:09]} Qg6 {[%emt 0:00:11]} 48. Qf3 {[%emt 0:00:49]} Qxf6 {[%emt 0:01:16]} 49. Qxh5+ {[%emt 0:00:17]} Qh6 {[%emt 0:00:01]} 50. Qd5 {[%emt 0:00:37]} Rd2 {[%emt 0:02:30]} 51. Qe4+ {[%emt 0:00:34]} Qg6 {[%emt 0:00:13]} 52. Qf3 {[%emt 0:00:27]} Ra2 {[%emt 0:00:28]} 53. Qd5 {[%emt 0:00:29]} Kh6 {[%emt 0:02:16]} 54. Kh3 {[%emt 0:00:16]} Ra3 {[%emt 0:00:40]} 55. Bf3 {[%emt 0:00:29]} Rd3 {[%emt 0:00:46]} 56. Qe4 {[%emt 0:00:55]} Qxe4 {[%emt 0:00:16]} 57. Bxe4 {[%emt 0:00:08]} Ra3 {[%emt 0:00:04]} 58. Kg4 {[%emt 0:00:36]} Rxa5 {[%emt 0:00:14]} 59. Bd5 {[%emt 0:00:25]} Kg6 {[%emt 0:00:18]} 60. Kf4 {[%emt 0:00:09]} Ra1 {[%emt 0:00:10]} 61. g4 {[%emt 0:00:26]} Rf1+ {[%emt 0:00:13]} 62. Ke4 {[%emt 0:00:21]} Rh1 {[%emt 0:00:11]} 63. h5+ {[%emt 0:00:12]} Kg5 {[%emt 0:00:03]} 64. Be6 {[%emt 0:00:07]} Kf6 {[%emt 0:00:36]} 65. Bf5 {[%emt 0:00:16]} Rd1 {[%emt 0:00:50]} 66. Bd7 {[%emt 0:00:39]} Kg5 {[%emt 0:00:38]} 67. Bf5 {[%emt 0:00:25]} Rd2 {[%emt 0:00:48]} 68. Ke3 {[%emt 0:01:04]} Rd1 {[%emt 0:00:39]} 69. Ke4 {[%emt 0:00:08]} Kh4 {[%emt 0:00:11]} 70. Bd7 {[%emt 0:00:18]} Kg5 {[%emt 0:00:29]} 71. Bf5 {[%emt 0:00:06]} Rd2 {[%emt 0:00:53]} 72. Ke3 {[%emt 0:00:05]} Ra2 {[%emt 0:00:06]} 73. Kd4 {[%emt 0:00:39]} Ra5 {[%emt 0:00:21]} 74. Bd7 {[%emt 0:00:15]} Kf4 {[%emt 0:00:37]} 75. Bf5 {[%emt 0:00:43]} Rc5 {[%emt 0:00:05]} 76. Bd7 {[%emt 0:00:35]} Re5 {[%emt 0:01:04]} 77. Bf5 {[%emt 0:00:14]} Kf3 {[%emt 0:01:05]} 78. Bd7 {[%emt 0:00:15]} Rc5 {[%emt 0:00:56]} 79. Bf5 {[%emt 0:00:10]} Kf4 {[%emt 0:00:16]} 80. Bd7 {[%emt 0:00:14]} Kg5 {[%emt 0:00:12]} 81. Bf5 {[%emt 0:00:08]} Kf6 {[%emt 0:00:06]} 82. Bd7 {[%emt 0:00:30]} Ke7 {[%emt 0:00:04]} 83. Bf5 {[%emt 0:00:09]} Kd8 {[%emt 0:00:19]} 84. Be4 {[%emt 0:01:12]} Re5 {[%emt 0:00:12]} 85. Bf5 {[%emt 0:00:32]} Ke7 {[%emt 0:00:09]} 86. Bc8 {[%emt 0:00:26]} Re1 {[%emt 0:01:20]} 87. Bf5 {[%emt 0:00:34]} Kf6 {[%emt 0:00:35]} 88. Kd5 {[%emt 0:00:26]} Rd1+ {[%emt 0:00:08]} 89. Ke4 {[%emt 0:00:18]} Kg5 {[%emt 0:00:27]} 90. Bd7 {[%emt 0:00:30]} Rd2 {[%emt 0:01:22]} 91. Bf5 {[%emt 0:00:15]} Kf6 {[%emt 0:00:14]} 92. Bd7 {[%emt 0:00:23]} Ra2 {[%emt 0:00:19]} 93. Kd5 {[%emt 0:00:24]} Ke7 {[%emt 0:00:06]} 94. Bf5 {[%emt 0:00:14]} Ra5+ {[%emt 0:00:05]} 95. Kd4 {[%emt 0:00:25]} Kf6 {[%emt 0:00:04]} 96. Bd7 {[%emt 0:05:37]} Kg5 {[%emt 0:00:00]} 97. Bf5 {[%emt 0:00:00]} Kf4 {[%emt 0:04:54]} 98. Bd7 {[%emt 0:00:00]} Ra1 {[%emt 0:00:00]} 99. Kd5 {[%emt 0:00:00]} Rd1+ {[%emt 0:01:00]} 100. Kc6 {[%emt 0:00:00]} Rd4 {[%emt 0:00:00]} 101. Kb5 {[%emt 0:00:00]} Kg5 {[%emt 0:00:00]} 102. Bf5 {[%emt 0:00:00]} Rd1 {[%emt 0:00:00]} 103. Kb4 {[%emt 0:00:00]} Kf4 {[%emt 0:00:00]} 104. Kc3 {[%emt 0:00:00]} Ke5 {[%emt 0:00:00]} 105. Kc2 {[%emt 0:00:00]} Rg1 {[%emt 0:00:00]} 106. Kd3 {[%emt 0:00:00]} Rg3+ {[%emt 0:00:00]} 107. Kc2 {[%emt 0:00:14]} Kf4 {[%emt 0:00:00]} 108. Kd2 {[%emt 0:00:38]} Rxg4 {[%emt 0:00:00]} 109. Bxg4 {[%emt 0:00:19]} Kxg4 {[%emt 0:00:00]} 110. Ke3 {[%emt 0:00:07]} Kxh5 {[%emt 0:00:00]} 111. Kd4 {[%emt 0:00:18]} g5 {[%emt 0:00:00]} 112. Kd5 {[%emt 0:00:01]} g4 {[%emt 0:00:00]} 113. Kxd6 {[%emt 0:00:06]} g3 {[%emt 0:00:00]} 114. c5 {[%emt 0:00:04]} g2 {[%emt 0:00:00]} 115. c6 {[%emt 0:00:06]} g1=Q {[%emt 0:00:00]} 116. Kd7 {[%emt 0:00:25]} Qg7+ {[%emt 0:00:00]} 117. Kc8 {[%emt 0:00:09]} Qf8+ {[%emt 0:00:00]} 118. Kb7 {[%emt 0:00:05]} Qb4+ {[%emt 0:00:00]} 119. Kc8 {[%emt 0:00:08]} Qf8+ {[%emt 0:00:00]} 120. Kb7 {[%emt 0:00:05]} Qf3 {[%emt 0:00:00]} 121. Kb6 {[%emt 0:00:27]} Kg6 {[%emt 0:00:00]} 122. Kc7 {[%emt 0:00:24]} Kf6 {[%emt 0:00:00]} 123. Kd7 {[%emt 0:00:02]} Qd5+ {[%emt 0:00:00]} 124. Kc7 {[%emt 0:00:06]} Ke7 {[%emt 0:00:00]} 125. Kb6 {[%emt 0:00:02]} Kd6 {[%emt 0:00:00]} 126. c7 {[%emt 0:00:08]} Qc6+ {[%emt 0:00:00]} 127. Ka7 {[%emt 0:00:07]} Qxc7+ {[%emt 0:00:00]} 128. Ka8 {[%emt 0:00:03]} Qe7 {[%emt 0:00:00]} 129. Kb8 {[%emt 0:00:07]} Kc6 {[%emt 0:00:00]} 130. Kc8 {[%emt 0:00:08]} Qe8# {[%emt 0:00:00]} 0-1

[Event "FIDE World Cup O10-A 2024"]
[Site "Batumi"]
[Date "2024.06.28"]
[Round "6.3"]
[White "Shangin, Lev"]
[Black "Eshkol, Idan"]
[Result "1-0"]
[ECO "A53"]
[WhiteElo "2031"]
[BlackElo "1544"]
[Annotator "NA RC"]
[PlyCount "77"]
[EventDate "2024.06.23"]
[EventType "swiss"]
[EventCountry "GEO"]
[SourceTitle "playchess.com"]
[Source "ChessBase"]
[SourceQuality "1"]
[TimeControl "5400+30"]

1. d4 {[%emt 0:00:18]} d6 {[%emt 0:00:07]} 2. c4 {[%emt 0:00:26]} e5 {[%emt 0:00:04]} 3. d5 {[%emt 0:02:07]} Be7 {[%emt 0:01:08]} 4. Nf3 {[%emt 0:05:37]} Nf6 {[%emt 0:03:05]} 5. Nc3 {[%emt 0:00:49]} c6 {[%emt 0:09:14]} 6. e4 {[%emt 0:07:12]} Nbd7 {[%emt 0:06:11]} 7. Be2 {[%emt 0:03:06]} Nf8 {[%emt 0:03:40]} 8. dxc6 {[%emt 0:04:39]} bxc6 {[%emt 0:00:10]} 9. c5 {[%emt 0:00:39]} d5 $2 {[%emt 0:10:32]} (9... Ne6 $11 {and Black has nothing to worry.}) 10. exd5 {[%emt 0:06:22]} Bxc5 {[%emt 0:05:50]} 11. Nxe5 {[%emt 0:01:30]} (11. Qa4 $18 Qb6 12. Qxc6+ (12. dxc6 Bxf2+ 13. Kf1 Ne6 $11) 12... Qxc6 13. dxc6) 11... cxd5 {[%emt 0:08:13]} 12. O-O {[%emt 0:02:55]} a6 {[%emt 0:10:48]} (12... Ne6 $16 {was called for.}) 13. Bg5 {[%emt 0:11:09]} Be6 {[%emt 0:03:15]} (13... Ne6 {was called for.}) 14. Qa4+ {[%emt 0:05:18]} N8d7 {[%emt 0:00:34]} 15. Bxf6 {[%emt 0:09:56]} ({And not} 15. Bxa6 O-O 16. Bxf6 gxf6 $17 (16... Nxf6 17. Qc6 $19)) 15... Qxf6 {[%emt 0:02:09]} 16. Qc6 {[%emt 0:02:28]} Qd8 $18 {[%emt 0:09:41]} 17. Nxd7 {[%emt 0:00:27]} Rc8 {[%emt 0:00:03]} 18. Qxa6 {[%emt 0:02:07]} Bxd7 {[%emt 0:01:04]} 19. Nxd5 {[%emt 0:01:26]} O-O {[%emt 0:00:56]} 20. Rad1 {[%emt 0:01:24]} Qg5 {[%emt 0:06:37]} 21. Nf6+ {[%emt 0:01:54]} gxf6 {[%emt 0:01:30]} 22. Rxd7 {[%emt 0:00:11]} Qe5 {[%emt 0:01:22]} 23. Bc4 {[%emt 0:01:52]} Rb8 {[%emt 0:15:47]} 24. Bb3 {[%emt 0:05:09]} Rbe8 {[%emt 0:00:00]} 25. Qc4 {[%emt 0:00:38]} Bd6 {[%emt 0:00:00]} 26. g3 {[%emt 0:00:31]} Rc8 {[%emt 0:00:00]} 27. Qg4+ {[%emt 0:00:17]} Kh8 {[%emt 0:00:03]} 28. Rxf7 {[%emt 0:00:16]} f5 {[%emt 0:00:28]} 29. Rxf8+ {[%emt 0:03:54]} Rxf8 {[%emt 0:00:29]} 30. Qc4 {[%emt 0:00:03]} Qg7 {[%emt 0:00:59]} 31. f4 {[%emt 0:03:54]} Qxb2 {[%emt 0:00:52]} 32. Rf2 {[%emt 0:00:25]} Qa1+ {[%emt 0:00:39]} 33. Kg2 {[%emt 0:00:07]} Bb8 {[%emt 0:00:39]} 34. Rc2 {[%emt 0:00:14]} Qg7 {[%emt 0:00:45]} 35. Qc3 {[%emt 0:00:05]} Rf6 {[%emt 0:00:11]} 36. Re2 {[%emt 0:00:19]} Qb7+ {[%emt 0:00:17]} 37. Qf3 {[%emt 0:00:13]} Qc8 {[%emt 0:00:35]} 38. Qd5 {[%emt 0:00:42]} Rd6 {[%emt 0:00:18]} 39. Qe5+ {[%emt 0:00:04]} 1-0

[Event "FIDE World Cup O10-A 2024"]
[Site "Batumi"]
[Date "2024.06.28"]
[Round "6.4"]
[White "Mrozowski, Nikodem"]
[Black "Ashwath Kaushik"]
[Result "1/2-1/2"]
[ECO "E08"]
[WhiteElo "1776"]
[BlackElo "2029"]
[Annotator "NA RC"]
[PlyCount "160"]
[EventDate "2024.06.23"]
[EventType "swiss"]
[EventCountry "GEO"]
[SourceTitle "playchess.com"]
[Source "ChessBase"]
[SourceQuality "1"]
[TimeControl "5400+30"]

1. d4 {[%emt 0:00:06]} d5 {[%emt 0:00:13]} 2. c4 {[%emt 0:00:10]} e6 {[%emt 1:31:17]} 3. Nf3 {[%emt 0:01:30]} Nf6 {[%emt 0:00:00]} 4. g3 {[%emt 0:00:38]} Be7 {[%emt 0:00:00]} 5. Bg2 {[%emt 0:00:50]} O-O {[%emt 0:01:30]} 6. O-O {[%emt 0:00:54]} c6 {[%emt 0:00:00]} 7. Qc2 {[%emt 0:00:59]} b6 {[%emt 0:01:00]} 8. Rd1 {[%emt 0:02:20]} Nbd7 {[%emt 0:00:00]} 9. Nc3 {[%emt 1:27:33]} Ba6 {[%emt 0:00:00] E08: Closed Catalan: Main Line: 7 Qc2.} 10. Nd2 {[%emt 0:00:30]} b5 {[%emt 0:00:00]} 11. cxb5 {[%emt 0:00:00]} cxb5 {[%emt 0:00:00]} 12. a3 $1 {[%emt 0:01:00]} Rc8 {[%emt 0:00:00]} 13. Qb3 {[%emt 0:00:00]} (13. e4 $142) 13... Qb6 {[%emt 0:00:00]} 14. e4 {[%emt 0:01:00]} dxe4 {[%emt 0:00:00]} 15. Ndxe4 {[%emt 0:00:00]} Nxe4 {[%emt 0:00:00]} 16. Nxe4 {[%emt 0:00:00]} Bb7 {[%emt 0:00:00]} 17. Be3 {[%emt 0:00:00]} Bd5 {[%emt 0:00:00]} 18. Qd3 {[%emt 0:00:00]} Qb7 {[%emt 0:05:30]} 19. f3 {[%emt 0:00:00]} f5 {[%emt 0:00:00]} 20. Nd2 {[%emt 0:00:00]} g5 {[%emt 0:00:00]} 21. Bf2 {[%emt 0:00:00]} g4 {[%emt 0:00:00]} 22. Qe3 {[%emt 0:04:00] [#]} ({Better is} 22. Bf1) 22... f4 {[%emt 0:00:00]} 23. gxf4 {[%emt 0:00:00] [#]} Bd6 {[%emt 0:00:00]} (23... Nb6 $1 $17 {[%cal Rb6c4]} 24. b3 Bd6) 24. Bg3 {[%emt 0:00:00]} Qb8 {[%emt 0:00:00]} 25. fxg4 {[%emt 0:00:00]} Bxf4 {[%emt 0:00:00]} 26. Bxf4 {[%emt 0:00:00]} Qxf4 $11 {[%emt 0:00:00]} 27. Qxf4 {[%emt 0:00:00]} Rxf4 {[%emt 0:00:00]} 28. Bxd5 {[%emt 0:00:00]} exd5 {[%emt 0:00:00]} 29. h3 {[%emt 0:00:00]} Rc2 {[%emt 0:00:00]} 30. b4 {[%emt 0:00:00]} Nb6 {[%emt 0:00:00]} 31. Rf1 {[%emt 0:00:00]} Rxd4 {[%emt 0:00:00]} 32. Nf3 {[%emt 0:00:00]} Rd3 {[%emt 0:00:00]} 33. Rf2 {[%emt 0:00:00]} Rcc3 {[%emt 0:00:00]} 34. Kg2 {[%emt 0:00:00]} Rxa3 {[%emt 0:00:00]} 35. Re1 {[%emt 0:00:00]} Re3 {[%emt 0:00:00]} 36. Rxe3 {[%emt 0:00:00]} Rxe3 {[%emt 0:00:00]} 37. Nd4 {[%emt 0:00:00]} Re4 {[%emt 0:00:00]} 38. Nxb5 {[%emt 0:00:00]} a6 {[%emt 0:00:00]} 39. Nc7 {[%emt 0:00:00]} Rxb4 {[%emt 0:00:00]} 40. Rd2 {[%emt 0:00:00]} d4 {[%emt 0:00:00]} 41. Ne6 {[%emt 0:00:00]} a5 {[%emt 0:00:00]} 42. Rxd4 {[%emt 0:00:00]} Rb2+ {[%emt 0:00:00]} 43. Kg3 {[%emt 0:00:00]} a4 {[%emt 0:12:30]} 44. Rd3 {[%emt 0:04:01]} Nc4 {[%emt 0:00:00]} 45. Rd4 {[%emt 0:00:23]} Nb6 {[%emt 0:00:00]} 46. Rd3 {[%emt 0:00:04]} Rb3 {[%emt 0:00:00]} 47. Nc5 {[%emt 0:08:02]} Rb5 {[%emt 0:00:00]} 48. Ne6 {[%emt 0:00:00]} Nc4 {[%emt 0:00:00]} 49. Rd8+ {[%emt 0:00:00]} Kf7 {[%emt 0:00:00]} 50. Nd4 {[%emt 0:00:00]} Ra5 {[%emt 0:00:00]} 51. Nc6 {[%emt 0:00:00]} Ra6 {[%emt 0:00:00]} 52. Nb4 {[%emt 0:00:00]} Rb6 {[%emt 0:00:00]} 53. Nd5 {[%emt 0:00:00]} Rb3+ {[%emt 0:00:05]} 54. Kh4 {[%emt 0:00:00]} a3 {[%emt 0:02:11]} 55. Ra8 {[%emt 0:00:00]} Rb2 {[%emt 0:00:59]} 56. Nc3 {[%emt 0:00:00]} Rc2 {[%emt 0:00:32]} 57. Nb5 {[%emt 0:00:00]} a2 {[%emt 0:00:22]} 58. Nd4 {[%emt 0:00:00]} Rb2 {[%emt 0:00:19]} 59. Kg5 {[%emt 0:00:00]} Nd6 {[%emt 0:02:35]} 60. Ra7+ {[%emt 0:00:00]} Ke8 {[%emt 0:00:28]} 61. h4 {[%emt 0:00:00]} Ne4+ {[%emt 0:00:18]} 62. Kh6 {[%emt 0:00:00]} Nc3 {[%emt 0:00:27]} 63. Kxh7 {[%emt 0:00:27]} Rb1 {[%emt 0:00:08]} 64. Nc2 {[%emt 0:00:44]} Rc1 {[%emt 0:00:11]} 65. g5 {[%emt 0:00:12]} Rxc2 {[%emt 0:01:34]} 66. g6 {[%emt 0:00:10]} Nd5 {[%emt 0:00:29]} 67. g7 {[%emt 0:00:43]} Nf6+ {[%emt 0:00:10]} 68. Kh8 {[%emt 0:00:06]} Rg2 {[%emt 0:00:04]} 69. h5 {[%emt 0:00:16]} Rh2 {[%emt 0:02:08]} 70. g8=Q+ {[%emt 0:02:58]} Nxg8 {[%emt 0:00:00]} 71. Kxg8 {[%emt 0:00:10]} Rg2+ {[%emt 0:00:00]} 72. Kh7 {[%emt 0:00:20]} Kf8 {[%emt 0:00:16]} 73. Ra8+ {[%emt 0:00:17]} Kf7 {[%emt 0:00:19]} 74. Ra7+ {[%emt 0:00:14]} Kf6 {[%emt 0:00:42]} 75. Ra6+ {[%emt 0:00:07]} Ke5 {[%emt 0:00:57]} 76. h6 {[%emt 0:00:39]} Kd4 {[%emt 0:00:14]} 77. Kh8 {[%emt 0:00:23]} Kc3 {[%emt 0:00:27]} 78. h7 {[%emt 0:00:15]} Kb2 {[%emt 0:00:12]} 79. Rb6+ {[%emt 0:00:55]} Ka1 {[%emt 0:00:53]} 80. Rb1+ {[%emt 0:00:28]} axb1=N {[%emt 0:00:07]} 1/2-1/2

[Event "FIDE World Cup O10-A 2024"]
[Site "Batumi"]
[Date "2024.06.28"]
[Round "6.5"]
[White "Ramesan, Raunak Amit"]
[Black "Guntaka, Aayansh"]
[Result "0-1"]
[ECO "C01"]
[WhiteElo "1772"]
[BlackElo "1872"]
[Annotator "NA RC"]
[PlyCount "64"]
[EventDate "2024.06.23"]
[EventType "swiss"]
[EventCountry "GEO"]
[SourceTitle "playchess.com"]
[Source "ChessBase"]
[SourceQuality "1"]
[TimeControl "5400+30"]

1. e4 {[%emt 0:00:10]} e6 {[%emt 0:00:04]} 2. d4 {[%emt 0:00:07]} d5 {[%emt 0:00:04]} 3. Nc3 {[%emt 0:00:30]} Bb4 {[%emt 0:00:25]} 4. exd5 {[%emt 0:00:33]} exd5 {[%emt 0:00:08]} 5. Bd3 {[%emt 0:00:09]} Ne7 {[%emt 0:00:43]} 6. Nf3 {[%emt 0:00:11]} O-O {[%emt 0:00:37] C01: French: Exchange Variation.} 7. O-O {[%emt 0:00:28]} Bf5 {[%emt 0:02:18]} 8. Ne2 {[%emt 0:00:20]} Bd6 {[%emt 0:03:02]} 9. Bxf5 {[%emt 0:02:08]} Nxf5 {[%emt 0:00:12]} 10. Qd3 {[%emt 0:01:44]} Qd7 {[%emt 0:04:02]} 11. Nf4 {[%emt 0:06:07]} c6 {[%emt 1:24:25]} 12. Ne5 {[%emt 0:06:21]} Bxe5 {[%emt 0:00:00]} 13. dxe5 {[%emt 0:00:08]} Re8 {[%emt 0:01:00]} 14. Re1 {[%emt 1:18:34]} Na6 {[%emt 0:00:00]} 15. b3 {[%emt 0:00:00]} Nc5 {[%emt 0:00:00]} 16. Qh3 {[%emt 0:00:00]} f6 {[%emt 0:01:30]} 17. Bb2 {[%emt 0:00:00]} fxe5 {[%emt 0:00:00]} 18. Bxe5 {[%emt 0:02:00]} Qf7 {[%emt 0:01:00]} 19. Nh5 $11 {[%emt 0:00:00]} Ne4 {[%emt 0:00:00]} 20. Bb2 {[%emt 0:00:00]} d4 {[%emt 0:00:00]} 21. f3 {[%emt 0:00:00]} Ned6 {[%emt 0:01:30]} 22. Rad1 {[%emt 0:00:00]} Rxe1+ {[%emt 0:00:00]} 23. Rxe1 {[%emt 0:00:00]} Re8 {[%emt 0:00:00]} 24. Rd1 {[%emt 0:00:00]} Re2 {[%emt 0:00:00]} 25. Bxd4 {[%emt 0:00:00]} Nxd4 {[%emt 0:00:00]} 26. Rxd4 {[%emt 0:04:00]} Qe7 {[%emt 0:00:00]} 27. Rd3 {[%emt 0:00:00]} Rxc2 {[%emt 0:00:00]} 28. Rd1 {[%emt 0:00:00]} Qe3+ {[%emt 0:03:30]} 29. Kh1 {[%emt 0:01:30]} Rc1 {[%emt 0:00:00]} 30. Nf6+ {[%emt 0:00:00]} gxf6 {[%emt 0:00:00]} 31. Qg4+ {[%emt 0:00:00]} Kh8 {[%emt 0:00:00]} 32. f4 {[%emt 0:00:00]} Qe1+ {[%emt 0:02:00]} 0-1

[Event "FIDE World Cup O10-A 2024"]
[Site "Batumi"]
[Date "2024.06.28"]
[Round "6.6"]
[White "Aryan Mehta"]
[Black "Tsulaia, Giorgi"]
[Result "1-0"]
[ECO "E30"]
[WhiteElo "1863"]
[BlackElo "1646"]
[Annotator "NA RC"]
[PlyCount "69"]
[EventDate "2024.06.23"]
[EventType "swiss"]
[EventCountry "GEO"]
[SourceTitle "playchess.com"]
[Source "ChessBase"]
[SourceQuality "1"]
[TimeControl "5400+30"]

1. d4 {[%emt 0:00:03]} Nf6 {[%emt 0:00:10]} 2. c4 {[%emt 0:00:04]} e6 {[%emt 0:00:21]} 3. Nc3 {[%emt 0:00:04]} Bb4 {[%emt 0:00:11]} 4. Bg5 {[%emt 0:00:08]} c5 {[%emt 0:00:10]} 5. d5 {[%emt 0:00:16]} h6 {[%emt 1:32:08]} 6. Bh4 {[%emt 1:32:55]} g5 {[%emt 0:00:00]} 7. Bg3 {[%emt 0:00:00]} Ne4 {[%emt 0:00:00]} 8. Qc2 {[%emt 0:00:00]} Qa5 {[%emt 0:00:00]} 9. Be5 {[%emt 0:00:00]} f6 {[%emt 0:00:00]} 10. Qxe4 {[%emt 0:00:00]} fxe5 {[%emt 0:00:00]} 11. Qg6+ {[%emt 0:00:00]} Kf8 {[%emt 0:00:00]} 12. Qf6+ $18 {[%emt 0:00:00]} Kg8 {[%emt 0:00:00]} 13. Qxe5 {[%emt 0:00:00]} d6 {[%emt 0:00:00]} 14. Qf6 {[%emt 0:00:00]} Rh7 {[%emt 0:00:00]} 15. e3 {[%emt 0:00:00]} Rf7 {[%emt 0:00:00]} 16. Qg6+ {[%emt 0:00:00]} Rg7 {[%emt 0:00:00]} 17. Qc2 {[%emt 0:00:00]} e5 {[%emt 0:00:00]} 18. Bd3 {[%emt 0:00:00]} a6 {[%emt 0:00:00]} 19. Nge2 {[%emt 0:00:00]} b5 {[%emt 0:00:00]} 20. O-O {[%emt 0:00:00]} Bxc3 {[%emt 0:00:00]} 21. Nxc3 {[%emt 0:00:00]} bxc4 {[%emt 0:00:00]} 22. Bxc4 {[%emt 0:00:00]} Bb7 {[%emt 0:00:00]} 23. Ne4 {[%emt 0:00:00]} Qd8 {[%emt 0:00:00]} 24. f4 {[%emt 0:00:00]} exf4 {[%emt 0:00:00]} 25. exf4 {[%emt 0:00:00]} g4 {[%emt 0:00:00]} 26. Qc3 {[%emt 0:00:00]} Rf7 {[%emt 0:00:00]} 27. Qg3 {[%emt 0:00:00]} Qd7 {[%emt 0:00:00]} 28. f5 {[%emt 0:00:00]} h5 {[%emt 0:00:00]} 29. Nxd6 {[%emt 0:00:00]} Rf6 {[%emt 0:00:00]} 30. Ne4 {[%emt 0:00:00]} Rxf5 {[%emt 0:00:00]} 31. Nf6+ {[%emt 0:00:00]} Rxf6 {[%emt 0:00:00]} 32. Rxf6 {[%emt 0:00:00]} Qg7 {[%emt 0:00:00]} 33. d6+ {[%emt 0:00:00]} Kh8 {[%emt 0:00:00]} 34. Qe5 {[%emt 0:00:00]} Nd7 {[%emt 0:00:00]} 35. Rh6# {[%emt 0:00:00]} 1-0